fUSD/lending_fUSD_20251213
["ID","MTS","AMOUNT","RATE_DAILY","PERIOD"]
[398412013,1765619442041,-420.0,0.00017001,2]
[398412014,1765619442050,-706.93336975,0.00017013,2]
[398412015,1765619442059,-194.66731831,0.00017051,2]
[398412016,1765619442068,-300.0,0.00017051,2]
[398412017,1765619442078,-369.71037839,0.00017051,2]
[398412018,1765619442087,-195.0,0.00017051,2]
[398412019,1765619442096,-195.0,0.00017051,2]
[398412020,1765619442106,-1064.83848302,0.00017066,2]
[398412021,1765619442115,-1680.0,0.00017086,2]
[398412022,1765619442125,-499.0,0.00017098,2]
[398412023,1765619442135,-1000.0,0.00017098,2]
[398412024,1765619442144,-1000.0,0.00017098,2]
[398412025,1765619442154,-1000.0,0.00017098,2]
[398412026,1765619442164,-1000.0,0.00017098,2]
[398412027,1765619442174,-1000.0,0.00017098,2]
[398412028,1765619442183,-500.0,0.00017098,2]
[398412029,1765619442194,-423.83931656,0.00017098,2]
[398412030,1765619442204,-151.0,0.00017098,2]
[398412031,1765619442215,-574.12855637,0.00017098,2]
[398412032,1765619442225,-200.0,0.00017098,2]
[398412033,1765619442235,-207.4,0.00017098,2]
[398412034,1765619442244,-215.0738,0.00017098,2]
[398412035,1765619442254,-223.0315306,0.00017098,2]
[398412036,1765619442265,-231.28369723,0.00017098,2]
[398412037,1765619442275,-239.84119403,0.00017098,2]
[398412038,1765619442284,-201.89262005,0.00017098,2]
[398412039,1765619442295,-300.0,0.00017098,2]
[398412040,1765619442304,-500.0,0.00017123,2]
[398412041,1765619442315,-1693.0,0.00017123,2]
[398412042,1765619442325,-500.0,0.00017123,2]
[398412043,1765619442334,-499.0,0.00017153,2]
[398412044,1765619442345,-298.43387986,0.00017166,2]
[398412045,1765619442356,-499.0,0.00017208,2]
[398412046,1765619442373,-500.0,0.0001726,2]
[398412047,1765619442394,-1693.0,0.0001726,2]
[398412048,1765619442419,-500.0,0.0001726,2]
[398412049,1765619442442,-626.85,0.0001726,2]
[398412050,1765619442458,-499.0,0.00017263,2]
[398412051,1765619442467,-499.0,0.00017318,2]
[398412052,1765619442476,-499.0,0.00017373,2]
[398412053,1765619442486,-150.0,0.00017374,2]
[398412054,1765619442496,-1451.105,0.00017395,2]
[398412055,1765619442505,-1324.0,0.00017395,2]
[398412056,1765619442515,-252.193,0.00017395,2]
[398412057,1765619442524,-1261.0,0.00017395,2]
[398412058,1765619442534,-6520.0,0.00017395,2]
[398412059,1765619442543,-2426.0,0.00017395,2]
[398412060,1765619442556,-237.064,0.00017395,2]
[398412061,1765619442566,-500.0,0.00017397,2]
[398412062,1765619442575,-1693.0,0.00017397,2]
[398412064,1765619442584,-500.0,0.00017397,2]
[398412066,1765619442594,-499.0,0.00017428,2]
[398412067,1765619442603,-532.28,0.00017467,2]
[398412068,1765619442612,-499.0,0.00017483,2]
[398412069,1765619442621,-659.413,0.00017504,2]
[398412070,1765619442632,-503.0,0.00017507,2]
[398412071,1765619442642,-1000.0,0.00017521,2]
[398412072,1765619442651,-1000.0,0.00017521,2]
[398412073,1765619442661,-1000.0,0.00017521,2]
[398412074,1765619442670,-1000.0,0.00017521,2]
[398412075,1765619442680,-606.00059495,0.00017521,2]
[398412076,1765619442689,-1000.0,0.00017521,2]
[398412077,1765619442699,-420.42990245,0.00017534,2]
[398412078,1765619442709,-1693.0,0.00017534,2]
[398412079,1765619442719,-364.42072064,0.00017534,2]
[398412080,1765619442728,-626.85,0.00017534,2]
[398412081,1765619442738,-3233.19850472,0.0001764,2]
[398412082,1765619442747,-553.64373807,0.00017646,2]
[398412083,1765619442756,-1693.0,0.00017671,2]
[398412084,1765619442766,-1000.0,0.000177,2]
[398412085,1765619442775,-223.28073538,0.0001771,2]
[398412087,1765619442783,-7730.56,0.00017728,2]
[398412088,1765619442793,-300.0,0.00017788,2]
[398412089,1765619442802,-1000.0,0.000178,2]
[398412091,1765619442811,-1693.0,0.00017808,2]
[398412092,1765619442820,-626.85,0.00017808,2]
[398412093,1765619442830,-104947.77081142,0.0001783,2]
[398412094,1765619442839,-1038.88883587,0.00017836,2]
[398412095,1765619442848,-300.0,0.00017858,2]
[398412096,1765619442857,-500.0,0.00017882,2]
[398412097,1765619442866,-500.0,0.00017899,2]
[398412098,1765619442876,-743.9589902,0.000179,2]
[398412099,1765619442887,-3643.0,0.000179,2]
[398412100,1765619442896,-1693.0,0.00017945,2]
[398412101,1765619442906,-165.51213001,0.00017973,2]
[398412102,1765619442915,-500.0,0.00017973,2]
[398412103,1765619442925,-500.0,0.00017973,2]
[398412104,1765619442935,-500.0,0.00017973,2]
[398412105,1765619442944,-500.0,0.00017973,2]
[398412106,1765619442955,-330.25327919,0.00017973,2]
[398412107,1765619442965,-500.0,0.00017973,2]
[398412108,1765619442974,-500.0,0.00017973,2]
[398412109,1765619442984,-500.0,0.00017973,2]
[398412110,1765619442994,-567.32208643,0.00017973,2]
[398412111,1765619443003,-500.0,0.00017973,2]
[398412112,1765619443013,-500.0,0.00017973,2]
[398412113,1765619443021,-500.0,0.00017973,2]
[398412114,1765619443030,-500.0,0.00017973,2]
[398412115,1765619443040,-566.62084446,0.00017973,2]
[398412116,1765619443049,-500.0,0.00017973,2]
[398412117,1765619443059,-500.0,0.00017973,2]
[398412118,1765619443068,-500.0,0.00017973,2]
[398412119,1765619443077,-500.0,0.00017973,2]
[398412120,1765619443087,-500.0,0.00017973,2]
[398412121,1765619443096,-165.28083173,0.00017973,2]
[398412122,1765619443106,-500.0,0.00017973,2]
[398412123,1765619443115,-500.0,0.00017973,2]
[398412124,1765619443124,-500.0,0.00017973,2]
[398412125,1765619443134,-500.0,0.00017973,2]
[398412127,1765619443143,-500.0,0.00017973,2]
[398412128,1765619443152,-500.0,0.00017973,2]
[398412129,1765619443161,-500.0,0.00017973,2]
[398412130,1765619443170,-500.0,0.00017973,2]
[398412131,1765619443179,-500.0,0.00017973,2]
[398412132,1765619443189,-500.0,0.00017973,2]
[398412133,1765619443198,-500.0,0.00017973,2]
[398412134,1765619443208,-500.0,0.00017973,2]
[398412135,1765619443217,-500.0,0.00017973,2]
[398412136,1765619443227,-500.0,0.00017973,2]
[398412137,1765619443236,-500.0,0.00017994,2]
[398412138,1765619443246,-78050.2624661,0.00017997,2]
[398412139,1765619443256,-71461.0832421,0.00017997,2]
[398412140,1765619443266,-220.76406029,0.00017998,5]
[398412141,1765619443275,-500.0,0.00017998,2]
[398412142,1765619443286,-3303.9386631,0.00017999,2]
[398412144,1765619443295,-275420.068075,0.00017999,2]
[398412145,1765619443304,-1168.10261834,0.00017999,5]
[398412146,1765619443314,-11401.41065993,0.00017999,2]
[398412147,1765619443324,-500.0,0.00017999,2]
[398412148,1765619443333,-500.0,0.00017999,2]
[398412149,1765619443343,-500.0,0.00017999,2]
[398412150,1765619443353,-500.0,0.00017999,2]
[398412151,1765619443362,-500.0,0.00017999,2]
[398412152,1765619443372,-500.0,0.00017999,2]
[398412153,1765619443382,-500.0,0.00017999,2]
[398412154,1765619443393,-500.0,0.00017999,2]
[398412155,1765619443403,-289.4,0.00017999,2]
[398412156,1765619443413,-1000.0,0.00018,2]
[398412157,1765619443422,-437.96641227,0.00018,2]
[398412158,1765619443432,-620872.10705264,0.00018,2]
[398412159,1765619443442,-219020.73737637,0.00018,2]
[398412160,1765619443451,-962380.79738016,0.00018,2]
[398412161,1765619443461,-151.0,0.00018,2]
[398412162,1765619443470,-644696.82509925,0.00018,2]
[398412163,1765619444677,-549.76957592,0.00018,2]
[398412164,1765619444703,-512.27802841,0.00018,2]
[398412165,1765619444724,-4312.36922466,0.00018,2]
[398412166,1765619445203,-1.7e-07,0.00018,2]
[398412167,1765619445222,-1232.3838128,0.00018,2]
[398412168,1765619445619,-542414.8701763,0.00018,2]
[398412169,1765619445632,-35000.0,0.00018,2]
[398412170,1765619445682,-310.74854493,0.00018,2]
[398412171,1765619445695,-47214.88064234,0.00018,2]
[398412173,1765619446057,-20247.19,0.00018,2]
[398412174,1765619446090,-2066.00938475,0.00018,2]
[398412175,1765619446102,-569.05339703,0.00018,2]
[398412176,1765619446126,-4770.27025613,0.00018,2]
[398412182,1765619585818,-781.62191169,0.00015444,2]
[398412183,1765619591592,-250.01970239,0.00015444,2]
[398412184,1765619594924,-214.75808814,0.00015444,2]
[398412185,1765619596505,-300.0,0.00015444,2]
[398412186,1765619598588,-258.51304343,0.00015444,2]
[398412187,1765619602636,-164.75808814,0.00015444,2]
[398412188,1765619605278,-274.03784829,0.00015444,2]
[398412189,1765619606614,-280.39407579,0.00015444,2]
[398412190,1765619609937,155.81,8.383e-05,2]
[398412191,1765619610945,-253.62,0.00015444,2]
[398412192,1765619613763,-211.0895498,0.00015444,2]
[398412193,1765619614882,-325.96215171,0.00015444,2]
[398412194,1765619620814,-153.71182467,0.00015444,2]
[398412195,1765619623491,-282.48557006,0.00015444,2]
[398412196,1765619625258,-291.69084008,0.00015444,2]
[398412197,1765619629114,-171.75976707,0.00015444,2]
[398412198,1765619631205,-239.1193337,0.00015444,2]
[398412199,1765619633978,-230.76373537,0.00015444,2]
[398412200,1765619638998,-232.50447191,0.00015444,2]
[398412201,1765619640708,-269.84571679,0.00015444,2]
[398412202,1765619642845,-166.66,0.00015443,2]
[398412203,1765619644281,-133.34,0.00015443,2]
[398412204,1765619644304,-24.15246949,0.00015443,2]
[398412205,1765619645730,-275.84753051,0.00015443,2]
[398412206,1765619645754,-45.56828924,0.00015444,2]
[398412207,1765619647934,-259.44261351,0.00015444,2]
[398412208,1765619652425,-195.0,0.00015444,2]
[398412209,1765619652451,-46.38114695,0.00015444,2]
[398412210,1765619654524,-250.0,0.00015444,2]
[398412211,1765619659826,-370.5641563,0.00015444,2]
[398412212,1765619662789,-158.43239575,0.00015444,2]
[398412213,1765619664954,-478.62704075,0.00015444,2]
[398412214,1765619667278,-280.0,0.00015444,2]
[398412215,1765619669019,-429.0,0.00015444,2]
[398412216,1765619670688,-503.72976873,0.00015444,2]
[398412217,1765619672210,-164.82065278,0.00015444,2]
[398412218,1765619673790,-218.26628836,0.00015444,2]
[398412219,1765619676416,-279.0,0.00015444,2]
[398412220,1765619677927,-195.0,0.00015444,2]
[398412221,1765619681106,-194.77827722,0.00015443,2]
[398412222,1765619681131,-9.07581231,0.00015443,2]
[398412223,1765619683493,-210.30187148,0.00015443,2]
[398412224,1765619685029,-280.62231621,0.00015443,2]
[398412225,1765619685052,-94.73062074,0.00015443,2]
[398412226,1765619687022,-129.95405285,0.00015443,2]
[398412227,1765619687047,-170.04594715,0.00015443,2]
[398412228,1765619689229,-100.3866463,0.00015443,2]
[398412229,1765619689253,-248.07545574,0.00015443,2]
[398412230,1765619692643,-187.87667047,0.00015443,2]
[398412231,1765619694456,-64.04787379,0.00015443,2]
[398412232,1765619694477,-206.87714251,0.00015443,2]
[398412233,1765619696541,-293.12285749,0.00015443,2]
[398412234,1765619696566,-165.67882951,0.00015443,2]
[398412235,1765619698361,-41.71182355,0.00015443,2]
[398412236,1765619698385,-239.92108355,0.00015444,2]
[398412238,1765619949236,7017.87924101,0.00015344,2]
[398412239,1765620036463,-300.0,0.00015442,2]
[398412240,1765620036490,-0.24817944,0.00015442,2]
[398412241,1765620112409,166.66,0.00015083,2]
[398412242,1765620141303,-166.66,0.00015401,2]
[398412243,1765620141325,-14.04272941,0.00015435,2]
[398412244,1765620144194,-136.95727059,0.00015435,2]
[398412245,1765620144216,-93.28031144,0.00015435,2]
[398412246,1765620146445,-106.71968856,0.00015435,2]
[398412247,1765620146468,-151.0,0.00015435,2]
[398412248,1765620146491,-44.20688134,0.00015435,2]
[398412249,1765620148239,-106.79311866,0.00015435,2]
[398412250,1765620148263,-102.97468802,0.00015435,2]
[398412251,1765620150521,-48.02531198,0.00015435,2]
[398412252,1765620150544,-144.7421239,0.00015435,2]
[398412253,1765620152026,-144.84450917,0.00015435,2]
[398412254,1765620152052,-500.0,0.00015435,2]
[398412255,1765620152079,-456.99627568,0.00015435,2]
[398412256,1765620156575,-27.06017259,0.00015435,2]
[398412257,1765620156599,-318.2585881,0.00015435,2]
[398412258,1765620158689,-181.7414119,0.00015435,2]
[398412259,1765620158714,-318.2585881,0.00015435,2]
[398412260,1765620160269,-154.4701172,0.00015435,2]
[398412261,1765620163642,-27.2712947,0.00015435,2]
[398412262,1765620163667,-392.40293095,0.00015435,2]
[398412263,1765620166932,-107.59706905,0.00015435,2]
[398412264,1765620166957,-116.77267548,0.00015435,2]
[398412265,1765620168059,-383.22732452,0.00015435,2]
[398412266,1765620168087,-69.28496015,0.00015435,2]
[398412267,1765620172146,-388.10139186,0.00015435,2]
[398412268,1765620173791,-42.61364799,0.00015435,2]
[398412269,1765620173815,-200.0,0.00015435,2]
[398412270,1765620173838,-0.42763664,0.00015435,2]
[398412271,1765620177921,-234.14389067,0.00015435,2]
[398412272,1765620181145,-265.42847269,0.00015435,2]
[398412273,1765620181169,-1.86574033,0.00015435,2]
[398412274,1765620247014,-157.7742949,0.00015435,2]
[398412275,1765620247042,-200.0,0.00015435,2]
[398412276,1765620247064,-14.19913367,0.00015438,2]
[398412277,1765620248637,-195.0,0.00015437,2]
[398412278,1765620248661,-122.19884067,0.00015438,2]
[398412279,1765620250206,-178.48883473,0.00015436,2]
[398412280,1765620254490,-291.3869778,0.00015436,2]
[398412281,1765620258425,-298.65693306,0.00015436,2]
[398412282,1765620260157,-180.46754864,0.00015436,2]
[398412283,1765620263082,-215.58206913,0.00015436,2]
[398412284,1765620264603,-300.0,0.00015436,2]
[398412285,1765620266141,-235.26532127,0.00015436,2]
[398412286,1765620268297,-288.7187326,0.00015436,2]
[398412287,1765620270441,-320.91701328,0.00015436,2]
[398412288,1765620272618,-371.61843486,0.00015436,2]
[398412289,1765620274662,-219.44061888,0.00015436,2]
[398412290,1765620277405,-195.0,0.00015436,2]
[398412291,1765620279607,-628.87632525,0.00015436,2]
[398412292,1765620281730,-246.13558361,0.00015436,2]
[398412293,1765620284137,-191.45805862,0.00015436,2]
[398412294,1765620286320,-312.75093653,0.00015436,2]
[398412295,1765620287930,-154.14062291,0.00015436,2]
[398412296,1765620292857,-194.16924576,0.00015436,2]
[398412297,1765620294406,-284.85854198,0.00015436,2]
[398412298,1765620296482,-261.31862545,0.00015436,2]
[398412299,1765620298633,-288.32770075,0.00015436,2]
[398412300,1765620300254,-155.86221199,0.00015436,2]
[398412301,1765620304175,-280.55938112,0.00015435,2]
[398412302,1765620305171,-19.44061888,0.00015435,2]
[398412303,1765620305196,-249.24996732,0.00015435,2]
[398412304,1765620306918,150.0,0.00015115,2]
[398412305,1765620307217,150.0,0.00015115,2]
[398412306,1765620310748,-283.89572613,0.00015435,2]
[398412307,1765620311899,150.0,0.00015115,2]
[398412308,1765620313429,157.43451246,0.00015115,2]
[398412309,1765620313577,150.0,0.00015115,2]
[398412310,1765620316481,-174.36309255,0.00015435,2]
[398412311,1765620316888,150.00000001,0.00015115,2]
[398412312,1765620318200,-186.75322715,0.00015435,2]
[398412313,1765620322258,-173.52947433,0.00015435,2]
[398412314,1765620326926,-132.20851252,0.00015435,2]
[398412315,1765620326948,-199.30150151,0.00015435,2]
[398412316,1765620327056,2500.0,0.00015344,2]
[398412317,1765620328474,150.0,0.00015115,2]
[398412318,1765620329701,-100.69849849,0.00015435,2]
[398412319,1765620329727,-146.97306525,0.00015436,2]
[398412320,1765620332414,-246.50497647,0.00015436,2]
[398412321,1765620335282,-195.0,0.00015436,2]
[398412322,1765620338225,-648.06580512,0.00015436,2]
[398412323,1765620342019,-276.99316811,0.00015436,2]
[398412324,1765620344677,-320.93184327,0.00015436,2]
[398412325,1765620349546,-197.7872548,0.00015436,2]
[398412326,1765620352066,-182.65867697,0.00015436,2]
[398412327,1765620354866,-152.78513759,0.00015436,2]
[398412328,1765620356918,-199.1397805,0.00015436,2]
[398412329,1765620358610,-280.0,0.00015436,2]
[398412330,1765620361800,-300.0,0.00015436,2]
[398412331,1765620365690,-300.0,0.00015435,2]
[398412332,1765620365716,-66.0,0.00015436,2]
[398412333,1765620368552,-166.66,0.00015436,2]
[398412336,1765620410868,-164.77840951,0.00015431,2]
[398412338,1765620440074,1006.834198,0.00025,120]
[398412344,1765620460616,283.67758462,0.00015297,7]
[398412345,1765620474033,6332.56915786,0.00015344,2]
[398412346,1765620561492,-19.74725977,0.00015431,2]
[398412347,1765620561515,-154.83865845,0.00015435,2]
[398412348,1765620564391,-45.16134155,0.00015435,2]
[398412349,1765620564413,-471.67391984,0.00015435,2]
[398412350,1765620565771,-237.59415219,0.00015435,2]
[398412351,1765620569704,-349.51900884,0.00015435,2]
[398412352,1765620572281,-141.21291913,0.00015435,2]
[398412353,1765620572305,-19.27266707,0.00015435,2]
[398412354,1765620575722,-163.75449751,0.00015435,2]
[398412355,1765620577730,-116.97283542,0.00015435,2]
[398412356,1765620577752,-69.98270691,0.00015436,2]
[398412357,1765620577778,-79.77980549,0.00015436,2]
[398412358,1765620580052,-461.12137404,0.00015436,2]
[398412359,1765620581979,-152.37446444,0.00015436,2]
[398412360,1765620584189,-155.58129497,0.00015436,2]
[398412361,1765620587114,-216.59765971,0.00015436,2]
[398412362,1765620589733,-449.54578886,0.00015436,2]
[398412363,1765620593609,-236.16323085,0.00015436,2]
[398412364,1765620595158,-159.51406417,0.00015436,2]
[398412365,1765620599196,-744.97466669,0.00015436,2]
[398412366,1765620601946,-347.10463053,0.00015435,2]
[398412367,1765620604293,-198.67438707,0.00015435,2]
[398412368,1765620605616,-154.91520239,0.00015435,2]
[398412369,1765620609699,-361.8782281,0.00015435,2]
[398412370,1765620609746,760000.0,0.00015343,2]
[398412371,1765620612452,-137.42755191,0.00015435,2]
[398412372,1765620612477,-143.80483139,0.00015435,2]
[398412373,1765620614239,-156.19516861,0.00015435,2]
[398412374,1765620614262,-135.56786104,0.00015436,2]
[398412375,1765620615837,-114.43213896,0.00015436,2]
[398412376,1765620615861,-129.36699271,0.00015436,2]
[398412377,1765620617284,-184.47280074,0.00015436,2]
[398412378,1765620620498,-341.59177984,0.00015436,2]
[398412379,1765620623402,-647.64361531,0.00015436,2]
[398412380,1765620625121,-379.32662888,0.00015436,2]
[398412381,1765620628250,-532.28,0.00015436,2]
[398412389,1765620631968,-4368.21207833,0.00015436,2]
[398412390,1765620632019,-2010.45162671,0.00015436,2]
[398412391,1765620632031,-1342.64096061,0.00015436,2]
[398412392,1765620632125,-860.0,0.00015436,2]
[398412393,1765620632136,-2471.96661148,0.00015436,2]
[398412394,1765620632148,-3124.78462949,0.00015436,2]
[398412395,1765620632159,-824.83,0.00015436,2]
[398412396,1765620632170,-477.97880591,0.00015436,2]
[398412397,1765620632188,-282.33286881,0.00015436,2]
[398412398,1765620632199,-2354.96308394,0.00015436,2]
[398412399,1765620632233,-1060.92728506,0.00015436,2]
[398412400,1765620632244,-344.81,0.00015436,2]
[398412401,1765620632255,-25696.36716668,0.00015436,2]
[398412402,1765620632264,-164.4934201,0.00015436,2]
[398412403,1765620632274,-1000.0,0.00015438,2]
[398412404,1765620632284,-437.96641227,0.00015438,2]
[398412406,1765620632293,-500.0,0.00015443,2]
[398412408,1765620632302,-258.14007396,0.00015443,2]
[398412410,1765620632311,-500.0,0.00015443,2]
[398412411,1765620632320,-500.0,0.00015443,2]
[398412413,1765620632329,-500.0,0.00015443,2]
[398412415,1765620632339,-8250.09311706,0.00015443,2]
[398412416,1765620632349,-550.52788879,0.00015443,2]
[398412417,1765620632358,-500.0,0.00015443,2]
[398412419,1765620632367,-500.0,0.00015443,2]
[398412421,1765620632376,-516.74047021,0.00015443,2]
[398412423,1765620632386,-507.60490985,0.00015443,2]
[398412425,1765620632395,-73221.32440028,0.00015444,2]
[398412426,1765620632406,-16665.70712334,0.00015444,2]
[398412427,1765620632723,-223.73662508,0.00015444,2]
[398412428,1765620634270,-266.77262838,0.00015444,2]
[398412429,1765620636925,-277.05453468,0.00015444,2]
[398412430,1765620638073,-4504.99611402,0.00015444,2]
[398412431,1765620638132,-1075.75719621,0.00015444,2]
[398412432,1765620638144,-1443.45977058,0.00015444,2]
[398412446,1765620638649,-30868.43746983,0.00015444,2]
[398412447,1765620638735,301.04926601,0.000154,2]
[398412448,1765620639605,-207.21519527,0.00015444,2]
[398412449,1765620640060,-207726.78848413,0.00015444,2]
[398412450,1765620640071,-8670.77494505,0.00015444,2]
[398412451,1765620640080,-267.35516927,0.00015517,7]
[398412452,1765620640090,-30675.77,0.00015531,2]
[398412453,1765620640100,-500.0,0.00015543,2]
[398412454,1765620640111,-500.0,0.00015543,2]
[398412455,1765620640120,-500.0,0.00015543,2]
[398412456,1765620640132,-1000.0,0.00015544,2]
[398412457,1765620640141,-1600.0,0.00015602,2]
[398412458,1765620640153,-6332.56915782,0.00015628,2]
[398412459,1765620640163,-500.0,0.00015643,2]
[398412460,1765620640173,-510.96756343,0.00015643,2]
[398412461,1765620640184,-500.0,0.00015643,2]
[398412462,1765620640195,-500.0,0.00015643,2]
[398412463,1765620640204,-500.0,0.00015643,2]
[398412464,1765620640215,-500.0,0.00015643,2]
[398412465,1765620640225,-500.0,0.00015643,2]
[398412466,1765620640234,-500.0,0.00015643,2]
[398412467,1765620640243,-500.0,0.00015643,2]
[398412468,1765620640252,-504.60053044,0.00015643,2]
[398412469,1765620640261,-500.0,0.00015643,2]
[398412470,1765620640270,-504.05914821,0.00015643,2]
[398412471,1765620640280,-500.0,0.00015643,2]
[398412472,1765620640290,-500.0,0.00015643,2]
[398412473,1765620640299,-500.0,0.00015643,2]
[398412474,1765620640311,-150.0,0.00015675,2]
[398412475,1765620640322,-166.66,0.00015718,2]
[398412476,1765620640332,-4122.97,0.00015773,2]
[398412477,1765620640342,-250.0,0.00015779,2]
[398412478,1765620640353,-150.0,0.00015786,2]
[398412479,1765620640362,-267.35516927,0.00015791,7]
[398412480,1765620640372,-500.0,0.0001589,2]
[398412481,1765620640382,-150.0,0.0001589,2]
[398412482,1765620640392,-500.0,0.0001589,2]
[398412483,1765620640401,-150.0,0.0001589,2]
[398412484,1765620640410,-150.0,0.0001589,2]
[398412485,1765620640420,-150.0,0.0001589,2]
[398412486,1765620640430,-500.0,0.0001589,2]
[398412487,1765620640440,-156.45165699,0.0001589,2]
[398412488,1765620640450,-1693.0,0.0001589,2]
[398412489,1765620640459,-152.6264382,0.0001589,2]
[398412490,1765620640468,-150.0,0.0001589,2]
[398412491,1765620640477,-150.0,0.0001589,2]
[398412493,1765620640486,-150.0,0.0001589,2]
[398412495,1765620640496,-500.0,0.0001589,2]
[398412496,1765620640508,-150.0,0.0001589,2]
[398412497,1765620640518,-500.0,0.0001589,2]
[398412498,1765620640527,-168.00488833,0.0001589,2]
[398412499,1765620640537,-150.0,0.0001589,2]
[398412500,1765620640546,-150.0,0.0001589,2]
[398412501,1765620640556,-341.34360172,0.000159,2]
[398412502,1765620640566,-341.34360172,0.000159,2]
[398412504,1765620640576,-6332.56915782,0.00015912,2]
[398412506,1765620640585,-170.0,0.00015915,2]
[398412509,1765620640599,-150.0,0.00015955,2]
[398412510,1765620640615,-500.0,0.00016027,2]
[398412511,1765620640624,-150.0,0.00016027,2]
[398412512,1765620640634,-500.0,0.00016027,2]
[398412513,1765620640644,-150.0,0.00016027,2]
[398412514,1765620640654,-500.0,0.00016027,2]
[398412515,1765620640665,-1693.0,0.00016027,2]
[398412516,1765620640675,-150.0,0.00016027,2]
[398412517,1765620640685,-150.0,0.00016027,2]
[398412519,1765620640695,-500.0,0.00016027,2]
[398412521,1765620640704,-500.0,0.00016027,2]
[398412522,1765620640713,-150.0,0.00016027,2]
[398412523,1765620640724,-166.66,0.00016036,2]
[398412524,1765620640733,-700.0,0.00016082,2]
[398412525,1765620640743,-222.79597439,0.00016119,7]
[398412526,1765620640753,-52749.81666533,0.00016127,2]
[398412527,1765620640763,-500.0,0.00016164,2]
[398412528,1765620640774,-500.0,0.00016164,2]
[398412529,1765620640785,-500.0,0.00016164,2]
[398412530,1765620640795,-1693.0,0.00016164,2]
[398412531,1765620640806,-150.0,0.00016164,2]
[398412532,1765620640816,-500.0,0.00016164,2]
[398412533,1765620640826,-500.0,0.00016164,2]
[398412534,1765620640837,-150.0,0.00016164,2]
[398412535,1765620640847,-150.0,0.00016164,2]
[398412536,1765620640857,-150.0,0.00016164,2]
[398412537,1765620640867,-500.0,0.00016164,2]
[398412538,1765620640876,-150.0,0.00016164,2]
[398412539,1765620640888,-150.0,0.00016164,2]
[398412540,1765620640898,-150.0,0.00016164,2]
[398412541,1765620640907,-150.0,0.00016164,2]
[398412542,1765620640917,-150.0,0.00016164,2]
[398412543,1765620640927,-150.0,0.00016164,2]
[398412544,1765620640937,-150.0,0.00016164,2]
[398412545,1765620640947,-6332.56915782,0.00016196,2]
[398412546,1765620640956,-150.0,0.00016235,2]
[398412547,1765620640966,-500.0,0.00016301,2]
[398412548,1765620640977,-500.0,0.00016301,2]
[398412549,1765620640987,-500.0,0.00016301,2]
[398412550,1765620640996,-1693.0,0.00016301,2]
[398412551,1765620641006,-209.988155,0.00016301,2]
[398412552,1765620641016,-500.0,0.00016301,2]
[398412553,1765620641025,-150.0,0.00016301,2]
[398412554,1765620641035,-150.0,0.00016301,2]
[398412555,1765620641045,-150.80982889,0.00016301,2]
[398412556,1765620641054,-500.0,0.00016301,2]
[398412557,1765620641065,-153.18226241,0.00016301,2]
[398412558,1765620641074,-263.1975105,0.00016301,2]
[398412559,1765620641084,-152.31948268,0.00016301,2]
[398412560,1765620641094,-150.0,0.00016301,2]
[398412561,1765620641103,-150.0,0.00016301,2]
[398412562,1765620641113,-150.0,0.00016301,2]
[398412563,1765620641122,-189.53122476,0.00016301,2]
[398412564,1765620641132,-166.66,0.00016353,2]
[398412565,1765620641141,-1000.0,0.00016356,2]
[398412566,1765620641151,-500.0,0.00016356,2]
[398412567,1765620641160,-200.0,0.00016363,2]
[398412568,1765620641170,-162.11,0.00016367,2]
[398412569,1765620641180,-500.0,0.00016437,2]
[398412570,1765620641190,-500.0,0.00016438,2]